[Event "Late-Titled-Tuesday-Blitz-May-07-2024"]
[Site "Chess.com"]
[Date "2024.05.07"]
[Round "4"]
[White "MITerryble"]
[Black "Dedic8"]
[Result "1-0"]
[WhiteElo "3031"]
[BlackElo "2867"]
[TimeControl "180+1"]
[EndTime "14:40:47 PDT"]
[Termination "MITerryble won by resignation"]

1. d4 {[%clk 0:03:00.9]} 1... Nf6 {[%clk 0:02:59.8]} 2. Bg5 {[%clk 0:03:01]}
2... d5 {[%clk 0:02:57.8]} 3. e3 {[%clk 0:03:01]} 3... Bf5 {[%clk 0:02:52.7]} 4.
Bd3 {[%clk 0:03:00.5]} 4... Bxd3 {[%clk 0:02:52.5]} 5. Qxd3 {[%clk 0:03:01.4]}
5... e6 {[%clk 0:02:52.1]} 6. Qb3 {[%clk 0:03:00.3]} 6... Nc6 {[%clk 0:02:40.7]}
7. Nd2 {[%clk 0:02:57.1]} 7... Be7 {[%clk 0:02:36.4]} 8. Qxb7 {[%clk 0:02:51.5]}
8... Nb4 {[%clk 0:02:33.9]} 9. Qb5+ {[%clk 0:02:51.6]} 9... Qd7 {[%clk
0:02:08.2]} 10. Qxd7+ {[%clk 0:02:51.3]} 10... Nxd7 {[%clk 0:02:09.1]} 11. Bxe7
{[%clk 0:02:51.7]} 11... Kxe7 {[%clk 0:02:09.2]} 12. Kd1 {[%clk 0:02:48.1]}
12... c5 {[%clk 0:02:09.4]} 13. Ngf3 {[%clk 0:02:41.9]} 13... Rhc8 {[%clk
0:02:09.2]} 14. a3 {[%clk 0:02:38.8]} 14... Nc6 {[%clk 0:02:09.6]} 15. c3 {[%clk
0:02:37.1]} 15... Rab8 {[%clk 0:02:09.5]} 16. Rb1 {[%clk 0:02:33.6]} 16... Rb7
{[%clk 0:02:06.2]} 17. Kc2 {[%clk 0:02:21.8]} 17... e5 {[%clk 0:01:50.2]} 18.
dxe5 {[%clk 0:02:18.9]} 18... Ndxe5 {[%clk 0:01:49.3]} 19. Nxe5 {[%clk
0:02:19.2]} 19... Nxe5 {[%clk 0:01:50.2]} 20. h3 {[%clk 0:02:16.5]} 20... f5
{[%clk 0:01:43.5]} 21. Rhd1 {[%clk 0:02:14.5]} 21... a5 {[%clk 0:01:38.7]} 22.
Nf3 {[%clk 0:02:09.6]} 22... Nxf3 {[%clk 0:01:28.1]} 23. gxf3 {[%clk 0:02:10.5]}
23... Ke6 {[%clk 0:01:28.4]} 24. f4 {[%clk 0:02:06.8]} 24... a4 {[%clk
0:01:27.1]} 25. b3 {[%clk 0:02:05.1]} 25... axb3+ {[%clk 0:01:24.7]} 26. Rxb3
{[%clk 0:02:06]} 26... Rxb3 {[%clk 0:01:25.1]} 27. Kxb3 {[%clk 0:02:06.9]} 27...
Rb8+ {[%clk 0:01:25.6]} 28. Kc2 {[%clk 0:02:07.1]} 28... Ra8 {[%clk 0:01:26]}
29. Ra1 {[%clk 0:02:07.2]} 29... d4 {[%clk 0:01:11.5]} 30. c4 {[%clk 0:01:56.7]}
30... dxe3 {[%clk 0:01:10.4]} 31. fxe3 {[%clk 0:01:57.6]} 31... h6 {[%clk
0:00:56.3]} 32. h4 {[%clk 0:01:57.5]} 32... Kf6 {[%clk 0:00:46.4]} 33. a4 {[%clk
0:01:50.8]} 33... Ra5 {[%clk 0:00:39.4]} 34. Kb3 {[%clk 0:01:48.4]} 34... g5
{[%clk 0:00:39.7]} 35. hxg5+ {[%clk 0:01:48.6]} 35... hxg5 {[%clk 0:00:40.6]}
36. fxg5+ {[%clk 0:01:49.5]} 36... Kxg5 {[%clk 0:00:41.2]} 37. Rd1 {[%clk
0:01:42]} 37... Ra8 {[%clk 0:00:35.1]} 38. Ra1 {[%clk 0:01:35.2]} 38... Re8
{[%clk 0:00:26.9]} 39. a5 {[%clk 0:01:34.9]} 39... Rxe3+ {[%clk 0:00:27.2]} 40.
Ka4 {[%clk 0:01:35.4]} 40... f4 {[%clk 0:00:26.5]} 41. a6 {[%clk 0:01:32.4]}
41... f3 {[%clk 0:00:26.6]} 42. a7 {[%clk 0:01:29.4]} 42... Re8 {[%clk
0:00:26.5]} 43. Kb5 {[%clk 0:01:29.4]} 43... f2 {[%clk 0:00:25.1]} 44. Kxc5
{[%clk 0:01:19.2]} 44... Re1 {[%clk 0:00:12.2]} 45. a8=Q {[%clk 0:01:18.7]}
45... f1=Q {[%clk 0:00:12.7]} 46. Qd5+ {[%clk 0:01:02.3]} 46... Kh4 {[%clk
0:00:10.7]} 47. Qd4+ {[%clk 0:00:56.9]} 47... Kh5 {[%clk 0:00:09.2]} 48. Qh8+
{[%clk 0:00:47]} 48... Kg4 {[%clk 0:00:07.8]} 49. Qg7+ {[%clk 0:00:47.2]} 49...
Kh5 {[%clk 0:00:07.2]} 50. Qh8+ {[%clk 0:00:41.4]} 50... Kg5 {[%clk 0:00:06.9]}
51. Qd8+ {[%clk 0:00:39.9]} 51... Kh5 {[%clk 0:00:06.3]} 52. Qe8+ {[%clk
0:00:24.1]} 52... Rxe8 {[%clk 0:00:05.9]} 53. Rxf1 {[%clk 0:00:25]} 53... Rc8+
{[%clk 0:00:06.2]} 54. Kb4 {[%clk 0:00:24.1]} 54... Rb8+ {[%clk 0:00:06.4]} 55.
Kc3 {[%clk 0:00:24.6]} 55... Rc8 {[%clk 0:00:06.8]} 56. Rg1 {[%clk 0:00:21.2]}
56... Kh6 {[%clk 0:00:05.8]} 57. Rg2 {[%clk 0:00:20.7]} 57... Kh5 {[%clk
0:00:04.8]} 58. Rg1 {[%clk 0:00:15.2]} 58... Kh6 {[%clk 0:00:04.9]} 59. Rg4
{[%clk 0:00:11.9]} 59... Kh5 {[%clk 0:00:05]} 60. Rg7 {[%clk 0:00:10.1]} 60...
Kh6 {[%clk 0:00:05.4]} 61. Rg2 {[%clk 0:00:10.6]} 61... Kh5 {[%clk 0:00:05.6]}
62. Rd2 {[%clk 0:00:05.7]} 62... Kg5 {[%clk 0:00:05.5]} 63. Rd6 {[%clk
0:00:04.8]} 63... Kf5 {[%clk 0:00:03.3]} 64. Kd4 {[%clk 0:00:05.4]} 64... Ra8
{[%clk 0:00:02.8]} 65. c5 {[%clk 0:00:05.6]} 65... Ra1 {[%clk 0:00:02.3]} 66.
Kd5 {[%clk 0:00:06.1]} 66... Rd1+ {[%clk 0:00:01.6]} 67. Kc6 {[%clk 0:00:06.5]}
67... Rc1 {[%clk 0:00:02.3]} 68. Kb6 {[%clk 0:00:05.9]} 68... Ke5 {[%clk
0:00:02.2]} 69. Rd2 {[%clk 0:00:06]} 69... Rb1+ {[%clk 0:00:02]} 70. Kc7 {[%clk
0:00:06.2]} 70... Ke6 {[%clk 0:00:01.4]} 71. c6 {[%clk 0:00:06.3]} 71... Rc1
{[%clk 0:00:01.6]} 72. Re2+ {[%clk 0:00:06]} 72... Kf7 {[%clk 0:00:02.1]} 73.
Kb7 {[%clk 0:00:06]} 73... Rb1+ {[%clk 0:00:02.4]} 74. Kc8 {[%clk 0:00:05.9]}
74... Rc1 {[%clk 0:00:03.2]} 75. c7 {[%clk 0:00:06.4]} 75... Rc3 {[%clk
0:00:03.7]} 76. Re1 {[%clk 0:00:04.7]} 76... Rc2 {[%clk 0:00:04]} 77. Re4 {[%clk
0:00:04.2]} 77... Rc1 {[%clk 0:00:04.2]} 78. Re5 {[%clk 0:00:04.4]} 78... Rc2
{[%clk 0:00:04.5]} 79. Kb7 {[%clk 0:00:04.1]} 79... Kf6 {[%clk 0:00:04.4]} 80.
Rb5 {[%clk 0:00:02.5]} 80... Ke7 {[%clk 0:00:04.4]} 81. c8=Q {[%clk 0:00:03]}
81... Rxc8 {[%clk 0:00:04.2]} 82. Kxc8 {[%clk 0:00:03.9]} 1-0

[Event "Late-Titled-Tuesday-Blitz-May-07-2024"]
[Site "Chess.com"]
[Date "2024.05.07"]
[Round "4"]
[White "Emp3rador"]
[Black "SharathRk6"]
[Result "1-0"]
[WhiteElo "2626"]
[BlackElo "2469"]
[TimeControl "180+1"]
[EndTime "14:40:52 PDT"]
[Termination "Emp3rador won by resignation"]

1. e4 {[%clk 0:02:56.4]} 1... e5 {[%clk 0:02:59.5]} 2. Nf3 {[%clk 0:02:56.2]}
2... Nc6 {[%clk 0:02:59.8]} 3. d4 {[%clk 0:02:56.2]} 3... exd4 {[%clk
0:02:59.5]} 4. Nxd4 {[%clk 0:02:57.1]} 4... Nf6 {[%clk 0:03:00]} 5. Nc3 {[%clk
0:02:46.3]} 5... Bb4 {[%clk 0:02:58.4]} 6. Nxc6 {[%clk 0:02:39.6]} 6... bxc6
{[%clk 0:02:57.6]} 7. Bd3 {[%clk 0:02:37.9]} 7... O-O {[%clk 0:02:56.6]} 8. O-O
{[%clk 0:02:31.6]} 8... d5 {[%clk 0:02:56.2]} 9. exd5 {[%clk 0:02:22.5]} 9...
cxd5 {[%clk 0:02:55.9]} 10. Bg5 {[%clk 0:02:23]} 10... c6 {[%clk 0:02:56]} 11.
Qf3 {[%clk 0:02:17.5]} 11... Be7 {[%clk 0:02:54.2]} 12. Rfe1 {[%clk 0:02:15.6]}
12... h6 {[%clk 0:02:53.9]} 13. Bf4 {[%clk 0:02:14.9]} 13... Be6 {[%clk
0:02:42.4]} 14. h3 {[%clk 0:02:10.2]} 14... d4 {[%clk 0:02:35.6]} 15. Ne4 {[%clk
0:01:39.4]} 15... Nd5 {[%clk 0:02:33.5]} 16. Be5 {[%clk 0:01:35.7]} 16... c5
{[%clk 0:02:12.9]} 17. Qg3 {[%clk 0:01:07.3]} 17... Nf6 {[%clk 0:02:09.2]} 18.
Bxf6 {[%clk 0:01:03.1]} 18... Bxf6 {[%clk 0:02:08.8]} 19. Nxc5 {[%clk
0:01:03.3]} 19... Bd5 {[%clk 0:02:02.5]} 20. Be4 {[%clk 0:00:49.8]} 20... Rc8
{[%clk 0:02:00.7]} 21. Bxd5 {[%clk 0:00:39]} 21... Qxd5 {[%clk 0:01:59.3]} 22.
Ne4 {[%clk 0:00:39.5]} 22... Be5 {[%clk 0:01:39.8]} 23. Qd3 {[%clk 0:00:36.2]}
23... f5 {[%clk 0:01:37.6]} 24. Nd2 {[%clk 0:00:27]} 24... Rfe8 {[%clk
0:01:30.6]} 25. Re2 {[%clk 0:00:22]} 25... Bf4 {[%clk 0:01:17.8]} 26. Rxe8+
{[%clk 0:00:14.7]} 26... Rxe8 {[%clk 0:01:17.5]} 27. Nf3 {[%clk 0:00:15.4]}
27... Rd8 {[%clk 0:01:16.4]} 28. b3 {[%clk 0:00:12]} 28... Qe4 {[%clk
0:01:05.4]} 29. Rd1 {[%clk 0:00:11.5]} 29... Bc7 {[%clk 0:00:50.9]} 30. Nxd4
{[%clk 0:00:10.4]} 30... Bb6 {[%clk 0:00:46.4]} 31. Qxe4 {[%clk 0:00:10.5]}
31... fxe4 {[%clk 0:00:46.6]} 32. c3 {[%clk 0:00:11.2]} 32... Rc8 {[%clk
0:00:46.9]} 33. Ne2 {[%clk 0:00:11.2]} 33... Rf8 {[%clk 0:00:46.7]} 34. Nd4
{[%clk 0:00:09.6]} 34... Rc8 {[%clk 0:00:46]} 35. Ne2 {[%clk 0:00:09.9]} 35...
Rf8 {[%clk 0:00:46.2]} 36. Rf1 {[%clk 0:00:09.9]} 36... Rd8 {[%clk 0:00:46.2]}
37. Nd4 {[%clk 0:00:08.2]} 37... Bxd4 {[%clk 0:00:44.7]} 38. cxd4 {[%clk
0:00:09.1]} 38... Rxd4 {[%clk 0:00:45.2]} 39. Re1 {[%clk 0:00:09.2]} 39... Rd2
{[%clk 0:00:44.5]} 40. Rxe4 {[%clk 0:00:09.2]} 40... Rxa2 {[%clk 0:00:44.9]} 41.
Rb4 {[%clk 0:00:09.4]} 41... Rb2 {[%clk 0:00:44.4]} 42. Rb7 {[%clk 0:00:06.6]}
42... a5 {[%clk 0:00:44.3]} 43. Rb5 {[%clk 0:00:07.1]} 43... Kh7 {[%clk
0:00:41.4]} 44. g3 {[%clk 0:00:06.8]} 44... Ra2 {[%clk 0:00:41.7]} 45. Kg2
{[%clk 0:00:07.4]} 45... a4 {[%clk 0:00:41.8]} 46. b4 {[%clk 0:00:07]} 46... Rb2
{[%clk 0:00:41.5]} 47. Kf3 {[%clk 0:00:06]} 47... a3 {[%clk 0:00:41.9]} 48. Ra5
{[%clk 0:00:06.2]} 48... a2 {[%clk 0:00:41.3]} 49. Kg2 {[%clk 0:00:06.1]} 49...
Kg6 {[%clk 0:00:40]} 50. b5 {[%clk 0:00:06.5]} 50... Rxb5 {[%clk 0:00:39.5]} 51.
Rxa2 {[%clk 0:00:05.9]} 51... Kf6 {[%clk 0:00:38.7]} 52. Ra4 {[%clk 0:00:06.4]}
52... Rb6 {[%clk 0:00:38.4]} 53. Rf4+ {[%clk 0:00:06.9]} 53... Kg6 {[%clk
0:00:37]} 54. Kf3 {[%clk 0:00:07.8]} 54... Rb3+ {[%clk 0:00:35.9]} 55. Kg2
{[%clk 0:00:08.2]} 55... Kh7 {[%clk 0:00:35.6]} 56. Re4 {[%clk 0:00:08.8]} 56...
g5 {[%clk 0:00:35.2]} 57. Re3 {[%clk 0:00:09.2]} 57... Rb4 {[%clk 0:00:34.9]}
58. Kf3 {[%clk 0:00:09.8]} 58... Kg6 {[%clk 0:00:35]} 59. Re4 {[%clk 0:00:10.4]}
59... Rb3+ {[%clk 0:00:35.1]} 60. Re3 {[%clk 0:00:10.7]} 60... Rb4 {[%clk
0:00:35.7]} 61. Re6+ {[%clk 0:00:10.8]} 61... Kg7 {[%clk 0:00:35.8]} 62. Rd6
{[%clk 0:00:10.3]} 62... Rb3+ {[%clk 0:00:35.9]} 63. Kg4 {[%clk 0:00:10.3]}
63... Rb2 {[%clk 0:00:34.6]} 64. Kh5 {[%clk 0:00:08.1]} 64... Rxf2 {[%clk
0:00:31.6]} 65. Rxh6 {[%clk 0:00:08]} 65... Rf3 {[%clk 0:00:28.8]} 66. Rg6+
{[%clk 0:00:07.9]} 66... Kh7 {[%clk 0:00:28.7]} 67. Rxg5 {[%clk 0:00:08.8]}
67... Ra3 {[%clk 0:00:28.4]} 68. h4 {[%clk 0:00:09.1]} 68... Ra4 {[%clk
0:00:28.2]} 69. g4 {[%clk 0:00:08.6]} 69... Ra6 {[%clk 0:00:28.8]} 70. Rd5
{[%clk 0:00:08.3]} 70... Rh6+ {[%clk 0:00:29.2]} 71. Kg5 {[%clk 0:00:08.7]}
71... Rg6+ {[%clk 0:00:29.5]} 72. Kf4 {[%clk 0:00:09.3]} 72... Rf6+ {[%clk
0:00:28.9]} 73. Rf5 {[%clk 0:00:09.3]} 73... Ra6 {[%clk 0:00:28.9]} 74. h5
{[%clk 0:00:09.8]} 74... Kg7 {[%clk 0:00:28.4]} 75. Kg5 {[%clk 0:00:10.2]} 75...
Kh7 {[%clk 0:00:28.7]} 76. Rc5 {[%clk 0:00:10]} 76... Ra7 {[%clk 0:00:28.3]} 77.
Kf5 {[%clk 0:00:09.5]} 77... Ra6 {[%clk 0:00:28.6]} 78. g5 {[%clk 0:00:09.5]}
78... Ra7 {[%clk 0:00:28.3]} 79. Re5 {[%clk 0:00:07.2]} 79... Rb7 {[%clk
0:00:28.2]} 80. Kf6 {[%clk 0:00:07.3]} 80... Rb6+ {[%clk 0:00:27.6]} 81. Re6
{[%clk 0:00:07.8]} 81... Rb8 {[%clk 0:00:27.3]} 82. Re7+ {[%clk 0:00:08.4]}
82... Kh8 {[%clk 0:00:27.2]} 83. g6 {[%clk 0:00:06.8]} 83... Rf8+ {[%clk
0:00:27.5]} 84. Kg5 {[%clk 0:00:07]} 84... Ra8 {[%clk 0:00:27.1]} 85. Kh6 {[%clk
0:00:06.5]} 85... Rb8 {[%clk 0:00:27.2]} 86. Kg5 {[%clk 0:00:06.8]} 86... Ra8
{[%clk 0:00:26.9]} 87. h6 {[%clk 0:00:06.9]} 87... Ra5+ {[%clk 0:00:27.1]} 88.
Kf6 {[%clk 0:00:07.2]} 88... Ra6+ {[%clk 0:00:26.2]} 89. Kf7 {[%clk 0:00:07]}
89... Ra8 {[%clk 0:00:18.4]} 90. Re8+ {[%clk 0:00:07.1]} 90... Rxe8 {[%clk
0:00:18.3]} 91. Kxe8 {[%clk 0:00:08]} 91... Kg8 {[%clk 0:00:18.9]} 92. g7 {[%clk
0:00:08.4]} 92... Kh7 {[%clk 0:00:19.1]} 93. Kf7 {[%clk 0:00:09.2]} 93... Kxh6
{[%clk 0:00:19.6]} 94. g8=Q {[%clk 0:00:09.5]} 1-0

[Event "Late-Titled-Tuesday-Blitz-May-07-2024"]
[Site "Chess.com"]
[Date "2024.05.07"]
[Round "4"]
[White "manmanlai1"]
[Black "Rodalquilar"]
[Result "1/2-1/2"]
[WhiteElo "2584"]
[BlackElo "2765"]
[TimeControl "180+1"]
[EndTime "14:40:57 PDT"]
[Termination "Game drawn - insufficient material"]

1. e4 {[%clk 0:03:00.9]} 1... d5 {[%clk 0:03:00.4]} 2. exd5 {[%clk 0:02:59.9]}
2... Qxd5 {[%clk 0:03:01.3]} 3. Nc3 {[%clk 0:02:58]} 3... Qa5 {[%clk 0:03:01.2]}
4. d4 {[%clk 0:02:57.5]} 4... Nf6 {[%clk 0:03:01.6]} 5. Nf3 {[%clk 0:02:55.5]}
5... Bf5 {[%clk 0:03:01.7]} 6. Ne5 {[%clk 0:02:43.4]} 6... c6 {[%clk 0:03:01.7]}
7. g4 {[%clk 0:02:39.1]} 7... Be6 {[%clk 0:03:01.8]} 8. Bd2 {[%clk 0:02:34.8]}
8... Nbd7 {[%clk 0:02:51.6]} 9. Nxd7 {[%clk 0:02:04.6]} 9... Bxd7 {[%clk
0:02:51.5]} 10. h3 {[%clk 0:02:04.1]} 10... Qb6 {[%clk 0:02:28.7]} 11. Qf3
{[%clk 0:01:55.9]} 11... e6 {[%clk 0:01:48.5]} 12. O-O-O {[%clk 0:01:54.1]}
12... h6 {[%clk 0:01:48.9]} 13. Bf4 {[%clk 0:01:47.4]} 13... Be7 {[%clk
0:01:47.8]} 14. Be5 {[%clk 0:01:46]} 14... Rg8 {[%clk 0:01:21.7]} 15. Bg2 {[%clk
0:01:42.1]} 15... Qa5 {[%clk 0:01:09.8]} 16. Kb1 {[%clk 0:01:39.6]} 16... O-O-O
{[%clk 0:00:53.7]} 17. Rhe1 {[%clk 0:01:36]} 17... Be8 {[%clk 0:00:51.2]} 18. h4
{[%clk 0:01:28.2]} 18... Bd6 {[%clk 0:00:45.3]} 19. g5 {[%clk 0:01:18.4]} 19...
hxg5 {[%clk 0:00:45.7]} 20. hxg5 {[%clk 0:01:17.7]} 20... Nd5 {[%clk 0:00:46.2]}
21. Ne4 {[%clk 0:01:05.9]} 21... Bc7 {[%clk 0:00:33.7]} 22. a3 {[%clk
0:01:00.2]} 22... Kb8 {[%clk 0:00:20]} 23. Bh3 {[%clk 0:00:52.7]} 23... Qb5
{[%clk 0:00:08.3]} 24. Bf1 {[%clk 0:00:36.1]} 24... Qa5 {[%clk 0:00:08.5]} 25.
Kc1 {[%clk 0:00:20.5]} 25... a6 {[%clk 0:00:08]} 26. Bh3 {[%clk 0:00:18.6]}
26... Qb5 {[%clk 0:00:05.6]} 27. g6 {[%clk 0:00:18.6]} 27... f5 {[%clk
0:00:05.5]} 28. Nc5 {[%clk 0:00:14.7]} 28... Bxe5 {[%clk 0:00:05.8]} 29. Rxe5
{[%clk 0:00:15.3]} 29... Bxg6 {[%clk 0:00:05.6]} 30. Nxe6 {[%clk 0:00:15.1]}
30... Rde8 {[%clk 0:00:06.2]} 31. Bxf5 {[%clk 0:00:14.2]} 31... Bxf5 {[%clk
0:00:06.8]} 32. Qxf5 {[%clk 0:00:15]} 32... Qb6 {[%clk 0:00:06.7]} 33. Nc5
{[%clk 0:00:14.6]} 33... Rxe5 {[%clk 0:00:05.8]} 34. Qxe5+ {[%clk 0:00:15]}
34... Ka7 {[%clk 0:00:06.4]} 35. Qe6 {[%clk 0:00:14.6]} 35... Rd8 {[%clk
0:00:06.4]} 36. Qe5 {[%clk 0:00:13.8]} 36... Nc7 {[%clk 0:00:06.5]} 37. Qxg7
{[%clk 0:00:13.2]} 37... Nb5 {[%clk 0:00:06.7]} 38. Qe5 {[%clk 0:00:12.7]} 38...
Nd6 {[%clk 0:00:06]} 39. Qe2 {[%clk 0:00:11.7]} 39... Qc7 {[%clk 0:00:05.6]} 40.
Qd3 {[%clk 0:00:11.8]} 40... Qf7 {[%clk 0:00:04.9]} 41. Kb1 {[%clk 0:00:11.5]}
41... Qxf2 {[%clk 0:00:04.9]} 42. Ne4 {[%clk 0:00:11.7]} 42... Nxe4 {[%clk
0:00:03.6]} 43. Qxe4 {[%clk 0:00:12.6]} 43... Qf7 {[%clk 0:00:03.7]} 44. Qe5
{[%clk 0:00:13]} 44... Rd5 {[%clk 0:00:03.5]} 45. Qe2 {[%clk 0:00:13]} 45... Qd7
{[%clk 0:00:03.9]} 46. c3 {[%clk 0:00:13.3]} 46... Qf5+ {[%clk 0:00:03.6]} 47.
Qd3 {[%clk 0:00:13.4]} 47... Qd7 {[%clk 0:00:04.5]} 48. Qe4 {[%clk 0:00:13.2]}
48... Rd6 {[%clk 0:00:04.5]} 49. Ka1 {[%clk 0:00:13.8]} 49... Rd5 {[%clk
0:00:04.8]} 50. Rf1 {[%clk 0:00:14.1]} 50... Rd6 {[%clk 0:00:03.9]} 51. Rh1
{[%clk 0:00:14.4]} 51... Re6 {[%clk 0:00:04.2]} 52. Qd3 {[%clk 0:00:14.3]} 52...
Qd5 {[%clk 0:00:04.6]} 53. Rd1 {[%clk 0:00:10.6]} 53... Rd6 {[%clk 0:00:04.5]}
54. Qc2 {[%clk 0:00:10.9]} 54... c5 {[%clk 0:00:04.3]} 55. Kb1 {[%clk
0:00:09.2]} 55... c4 {[%clk 0:00:04.6]} 56. Ka2 {[%clk 0:00:09.1]} 56... Rb6
{[%clk 0:00:04.9]} 57. Rd2 {[%clk 0:00:09.3]} 57... Qb5 {[%clk 0:00:04.3]} 58.
Rf2 {[%clk 0:00:08.8]} 58... a5 {[%clk 0:00:04.4]} 59. Re2 {[%clk 0:00:08]}
59... a4 {[%clk 0:00:04.7]} 60. Re5 {[%clk 0:00:08.6]} 60... Qb3+ {[%clk
0:00:02.9]} 61. Kb1 {[%clk 0:00:07.5]} 61... Rf6 {[%clk 0:00:02.6]} 62. Re1
{[%clk 0:00:07]} 62... Rf3 {[%clk 0:00:01.4]} 63. Kc1 {[%clk 0:00:06.5]} 63...
Rd3 {[%clk 0:00:01.8]} 64. Qxb3 {[%clk 0:00:01.9]} 64... axb3 {[%clk 0:00:02.1]}
65. Re5 {[%clk 0:00:02.6]} 65... Rg3 {[%clk 0:00:02]} 66. Rc5 {[%clk 0:00:03.2]}
66... Rg1+ {[%clk 0:00:02]} 67. Kd2 {[%clk 0:00:03.6]} 67... Rg2+ {[%clk
0:00:02.5]} 68. Ke3 {[%clk 0:00:04]} 68... Rxb2 {[%clk 0:00:02.6]} 69. Rxc4
{[%clk 0:00:04.6]} 69... Rb1 {[%clk 0:00:01.5]} 70. Rb4 {[%clk 0:00:05.1]} 70...
Ka6 {[%clk 0:00:02]} 71. Kd3 {[%clk 0:00:05.2]} 71... Ka5 {[%clk 0:00:02.3]} 72.
Kc4 {[%clk 0:00:05.9]} 72... b5+ {[%clk 0:00:02.6]} 73. Rxb5+ {[%clk 0:00:05.3]}
73... Ka4 {[%clk 0:00:03.2]} 74. Rb8 {[%clk 0:00:04.8]} 74... Kxa3 {[%clk
0:00:03.8]} 75. Ra8+ {[%clk 0:00:04.7]} 75... Kb2 {[%clk 0:00:04.2]} 76. d5
{[%clk 0:00:05.2]} 76... Kc2 {[%clk 0:00:04.8]} 77. d6 {[%clk 0:00:05.7]} 77...
b2 {[%clk 0:00:05.4]} 78. Rb8 {[%clk 0:00:05.6]} 78... Rd1 {[%clk 0:00:05.8]}
79. Rxb2+ {[%clk 0:00:05.9]} 79... Kxb2 {[%clk 0:00:06.2]} 80. Kc5 {[%clk
0:00:06.3]} 80... Kxc3 {[%clk 0:00:06.7]} 81. Kc6 {[%clk 0:00:07]} 81... Kb4
{[%clk 0:00:07.3]} 82. d7 {[%clk 0:00:07.6]} 82... Rc1+ {[%clk 0:00:07.9]} 83.
Kb7 {[%clk 0:00:07.4]} 83... Rd1 {[%clk 0:00:08]} 84. Kc7 {[%clk 0:00:08]} 84...
Rc1+ {[%clk 0:00:08.5]} 85. Kb7 {[%clk 0:00:08.2]} 85... Rd1 {[%clk 0:00:08.9]}
86. Kc7 {[%clk 0:00:08.8]} 86... Kc5 {[%clk 0:00:09.2]} 87. d8=Q {[%clk
0:00:08.3]} 87... Rxd8 {[%clk 0:00:09.3]} 88. Kxd8 {[%clk 0:00:09.2]} 1/2-1/2